Workbook

Sheet Dashboard
A1: Sent this month: | D1: 134 | F1: Left process at stage 1: | J1: 75 | L1: Left process at stage 2: | P1: 8 | R1: Exited process: | V1: 47 | X1: Settled: | AA1: 33
A3: Δ from last month: | D3: -61 | F3: Δ from last month: | J3: -40 | L3: Δ from last month: | P3: -12 | R3: Δ from last month: | V3: 1 | X3: Δ from last month: | AA3: -7
A5: Rolling 12 months: | D5: 3386 | F5: Rolling 12 months: | J5: 2864 | L5: Rolling 12 months: | P5: 140 | R5: Rolling 12 months: | V5: 718 | X5: Rolling 12 months: | AA5: 366
A7: Left Process Breakdowns - Stage 1:
A9: Reason | H9: This Month | J9: Last Month | L9: Δ
A10: Liability Decision Timeout | H10: 70 | J10: 97 | L10: -27
A11: Other | H11: 5 | J11: 17 | L11: -12
A12: Total | H12: 75 | J12: 114 | L12: -39
A13: Left Process Breakdowns - Stage 2:
A15: Reason | H15: This Month | J15: Last Month | L15: Δ
A16: Interim payment more than £1,000 not agreed: | H16: 0 | J16: 0 | L16: 0
A17: Settlement pack repudiated: | H17: 8 | J17: 19 | L17: -11
A18: Settlement pack timeout: | H18: 0 | J18: 1 | L18: -1
A19: No agreement; Court Proceedings pack: | H19: 0 | J19: 0 | L19: 0
A20: Total | H20: 8 | J20: 20 | L20: -12

Sheet Backing Sheet Data
A1: Reporting date | B1: 2025-04-01
A2: Previous month | B2: 2025-03-01
A4: Rolling 13 CNFs sent | D4: Average General Damages chart data | H4: Left Process Breakdown
O5: * Figures refreshed May 23 - Apr 25
A6: Period | B6: Rolling 12 Sent | D6: Row Labels | E6: Ave General Damages | H6: This Month LDT | I6: This Month Other Liability | J6: This Month Interim Payment Not Agreed | K6: This Month Repudiated | L6: This Month Timeout | M6: This Month Court Proceedings | O6: Period | P6: CNFs Sent | Q6: CNFs left at Stage 1 | R6: Stage 2 Exit | S6: Exit process | T6: Court Pack | U6: Settled claims | V6: General Damages
A7: 2024-04-01 | B7: 10066 | D7: 2024-04-01 | E7: 4188.205555 | H7: 70 | I7: 5 | J7: 0 | K7: 8 | L7: 0 | M7: 0 | O7: 2019-01-01 | P7: 439 | Q7: 207 | R7: 1 | S7: 162 | T7: 1 | U7: 24 | V7: 3734.385
A8: 2024-05-01 | B8: 9849 | D8: 2024-05-01 | E8: 3973.158378 | O8: 2019-02-01 | P8: 469 | Q8: 150 | R8: 4 | S8: 131 | T8: 0 | U8: 29 | V8: 4074.730689
A9: 2024-06-01 | B9: 9532 | D9: 2024-06-01 | E9: 3279.345925 | O9: 2019-03-01 | P9: 444 | Q9: 247 | R9: 4 | S9: 154 | T9: 1 | U9: 29 | V9: 3890.427586
A10: 2024-07-01 | B10: 9156 | D10: 2024-07-01 | E10: 4389.1 | O10: 2019-04-01 | P10: 405 | Q10: 225 | R10: 3 | S10: 153 | T10: 3 | U10: 36 | V10: 4254.035277
A11: 2024-08-01 | B11: 8693 | D11: 2024-08-01 | E11: 4914.230869 | O11: 2019-05-01 | P11: 418 | Q11: 218 | R11: 5 | S11: 144 | T11: 0 | U11: 30 | V11: 3973.95
A12: 2024-09-01 | B12: 8183 | D12: 2024-09-01 | E12: 3764.43 | O12: 2019-06-01 | P12: 373 | Q12: 214 | R12: 6 | S12: 135 | T12: 2 | U12: 22 | V12: 4900.111818
A13: 2024-10-01 | B13: 4975 | D13: 2024-10-01 | E13: 4068.868518 | O13: 2019-07-01 | P13: 431 | Q13: 222 | R13: 3 | S13: 130 | T13: 3 | U13: 27 | V13: 4078.79037
A14: 2024-11-01 | B14: 4707 | D14: 2024-11-01 | E14: 5049.26625 | O14: 2019-08-01 | P14: 367 | Q14: 206 | R14: 2 | S14: 117 | T14: 0 | U14: 24 | V14: 4280.075833
A15: 2024-12-01 | B15: 4349 | D15: 2024-12-01 | E15: 4451.479545 | O15: 2019-09-01 | P15: 385 | Q15: 190 | R15: 5 | S15: 134 | T15: 0 | U15: 28 | V15: 4135.575
A16: 2025-01-01 | B16: 4362 | D16: 2025-01-01 | E16: 3860.484 | O16: 2019-10-01 | P16: 432 | Q16: 174 | R16: 5 | S16: 152 | T16: 1 | U16: 37 | V16: 4641.112432
A17: 2025-02-01 | B17: 4065 | D17: 2025-02-01 | E17: 3326.572 | O17: 2019-11-01 | P17: 327 | Q17: 171 | R17: 6 | S17: 114 | T17: 1 | U17: 30 | V17: 4546.597
A18: 2025-03-01 | B18: 3822 | D18: 2025-03-01 | E18: 3342.008 | O18: 2019-12-01 | P18: 254 | Q18: 144 | R18: 5 | S18: 95 | T18: 4 | U18: 15 | V18: 3946.052
A19: 2025-04-01 | B19: 3386 | D19: 2025-04-01 | E19: 4179.451818 | O19: 2020-01-01 | P19: 325 | Q19: 132 | R19: 6 | S19: 111 | T19: 2 | U19: 27 | V19: 3777.607407
D20: Grand Total | E20: 52786.60086 | O20: 2020-02-01 | P20: 364 | Q20: 114 | R20: 1 | S20: 97 | T20: 0 | U20: 29 | V20: 5334.22862
O21: 2020-03-01 | P21: 335 | Q21: 173 | R21: 4 | S21: 104 | T21: 0 | U21: 48 | V21: 4100.90625
B22: 3628 | O22: 2020-04-01 | P22: 380 | Q22: 141 | R22: 1 | S22: 113 | T22: 2 | U22: 50 | V22: 4034.8254
A23: Exit Process Reason | B23: Total | O23: 2020-05-01 | P23: 230 | Q23: 122 | R23: 7 | S23: 92 | T23: 0 | U23: 38 | V23: 4309.436842
A24: Claim requires further investigation | B24: 1610 | O24: 2020-06-01 | P24: 265 | Q24: 171 | R24: 5 | S24: 102 | T24: 0 | U24: 51 | V24: 4113.323137
A25: Other | B25: 1236 | O25: 2020-07-01 | P25: 274 | Q25: 123 | R25: 2 | S25: 86 | T25: 1 | U25: 33 | V25: 3784.4
A26: Duplicated claim | B26: 320 | O26: 2020-08-01 | P26: 160 | Q26: 104 | R26: 1 | S26: 69 | T26: 0 | U26: 20 | V26: 4155.127
A27: Withdrawl of claim | B27: 312 | O27: 2020-09-01 | P27: 297 | Q27: 113 | R27: 2 | S27: 66 | T27: 0 | U27: 21 | V27: 4429.123809
A28: Incomplete information provided on CNF | B28: 109 | O28: 2020-10-01 | P28: 309 | Q28: 100 | R28: 2 | S28: 104 | T28: 0 | U28: 35 | V28: 4108.028
A29: Value of claim exceeds the upper limit | B29: 17 | O29: 2020-11-01 | P29: 286 | Q29: 127 | R29: 1 | S29: 66 | T29: 0 | U29: 32 | V29: 3741.734375
A30: Stage 1 costs not paid on time | B30: 7 | O30: 2020-12-01 | P30: 249 | Q30: 118 | R30: 3 | S30: 91 | T30: 1 | U30: 38 | V30: 3454.545
A31: Withdrawal of offer | B31: 6 | O31: 2021-01-01 | P31: 310 | Q31: 135 | R31: 2 | S31: 96 | T31: 0 | U31: 44 | V31: 3490.159772
A32: Failure to provide adequate loss of earnings details | B32: 5 | O32: 2021-02-01 | P32: 161 | Q32: 81 | R32: 1 | S32: 53 | T32: 0 | U32: 45 | V32: 3844.666666
A33: Claim is too complex for process | B33: 4 | O33: 2021-03-01 | P33: 290 | Q33: 147 | R33: 2 | S33: 99 | T33: 1 | U33: 45 | V33: 3700.458
A34: Value of claim below £1,000 | B34: 1 | O34: 2021-04-01 | P34: 302 | Q34: 132 | R34: 4 | S34: 87 | T34: 0 | U34: 29 | V34: 3493.789655
A35: Failure to acknowledge CNF on time | B35: 1 | O35: 2021-05-01 | P35: 240 | Q35: 129 | R35: 1 | S35: 84 | T35: 0 | U35: 44 | V35: 3907.815681
O36: 2021-06-01 | P36: 258 | Q36: 190 | R36: 1 | S36: 69 | T36: 1 | U36: 17 | V36: 4477.42647
O37: 2021-07-01 | P37: 411 | Q37: 154 | R37: 2 | S37: 65 | T37: 0 | U37: 35 | V37: 3377.421428
O38: 2021-08-01 | P38: 310 | Q38: 186 | R38: 2 | S38: 70 | T38: 0 | U38: 23 | V38: 3008.734782
O39: 2021-09-01 | P39: 322 | Q39: 187 | R39: 9 | S39: 88 | T39: 0 | U39: 56 | V39: 3245.840178
O40: 2021-10-01 | P40: 335 | Q40: 162 | R40: 4 | S40: 70 | T40: 0 | U40: 46 | V40: 3487.340217
O41: 2021-11-01 | P41: 408 | Q41: 180 | R41: 6 | S41: 100 | T41: 1 | U41: 37 | V41: 3714.316756
O42: 2021-12-01 | P42: 252 | Q42: 194 | R42: 4 | S42: 90 | T42: 0 | U42: 31 | V42: 3321.544838
O43: 2022-01-01 | P43: 360 | Q43: 192 | R43: 5 | S43: 92 | T43: 0 | U43: 63 | V43: 3527.666825
O44: 2022-02-01 | P44: 308 | Q44: 160 | R44: 4 | S44: 59 | T44: 0 | U44: 63 | V44: 3380.203333
O45: 2022-03-01 | P45: 416 | Q45: 223 | R45: 5 | S45: 71 | T45: 0 | U45: 36 | V45: 4066.627777
O46: 2022-04-01 | P46: 329 | Q46: 186 | R46: 5 | S46: 79 | T46: 0 | U46: 7 | V46: 4384.605714
O47: 2022-05-01 | P47: 394 | Q47: 246 | R47: 4 | S47: 76 | T47: 1 | U47: 36 | V47: 3896.656388
O48: 2022-06-01 | P48: 487 | Q48: 210 | R48: 7 | S48: 70 | T48: 1 | U48: 19 | V48: 3997.487894
O49: 2022-07-01 | P49: 427 | Q49: 417 | R49: 9 | S49: 56 | T49: 0 | U49: 28 | V49: 3584.553571
O50: 2022-08-01 | P50: 492 | Q50: 332 | R50: 9 | S50: 63 | T50: 0 | U50: 25 | V50: 4211.534
O51: 2022-09-01 | P51: 392 | Q51: 236 | R51: 8 | S51: 73 | T51: 1 | U51: 33 | V51: 4464.692121
O52: 2022-10-01 | P52: 447 | Q52: 298 | R52: 3 | S52: 71 | T52: 0 | U52: 36 | V52: 3836.775
O53: 2022-11-01 | P53: 495 | Q53: 257 | R53: 3 | S53: 86 | T53: 1 | U53: 29 | V53: 5012.076896
O54: 2022-12-01 | P54: 351 | Q54: 263 | R54: 6 | S54: 81 | T54: 0 | U54: 27 | V54: 4076.145555
O55: 2023-01-01 | P55: 501 | Q55: 317 | R55: 8 | S55: 71 | T55: 0 | U55: 55 | V55: 3662.128363
O56: 2023-02-01 | P56: 520 | Q56: 229 | R56: 3 | S56: 76 | T56: 0 | U56: 23 | V56: 4206.8
O57: 2023-03-01 | P57: 533 | Q57: 352 | R57: 10 | S57: 120 | T57: 0 | U57: 34 | V57: 3691.957941
O58: 2023-04-01 | P58: 543 | Q58: 270 | R58: 4 | S58: 81 | T58: 0 | U58: 29 | V58: 3567.691724
O59: 2023-05-01 | P59: 614 | Q59: 226 | R59: 12 | S59: 98 | T59: 0 | U59: 64 | V59: 3827.930781
O60: 2023-06-01 | P60: 640 | Q60: 456 | R60: 4 | S60: 95 | T60: 0 | U60: 49 | V60: 3444.55102
O61: 2023-07-01 | P61: 695 | Q61: 425 | R61: 6 | S61: 126 | T61: 0 | U61: 40 | V61: 3578.814
O62: 2023-08-01 | P62: 1000 | Q62: 428 | R62: 8 | S62: 198 | T62: 0 | U62: 47 | V62: 3724.151063
O63: 2023-09-01 | P63: 3510 | Q63: 443 | R63: 3 | S63: 405 | T63: 0 | U63: 91 | V63: 3420.821978
O64: 2023-10-01 | P64: 423 | Q64: 1009 | R64: 3 | S64: 447 | T64: 0 | U64: 53 | V64: 3354.669811
O65: 2023-11-01 | P65: 468 | Q65: 1726 | R65: 9 | S65: 220 | T65: 0 | U65: 42 | V65: 4025.859761
O66: 2023-12-01 | P66: 211 | Q66: 336 | R66: 3 | S66: 49 | T66: 0 | U66: 73 | V66: 3342.43863
O67: 2024-01-01 | P67: 451 | Q67: 260 | R67: 11 | S67: 45 | T67: 0 | U67: 33 | V67: 3724.128181
O68: 2024-02-01 | P68: 438 | Q68: 294 | R68: 8 | S68: 74 | T68: 0 | U68: 69 | V68: 3370.433478
O69: 2024-03-01 | P69: 570 | Q69: 307 | R69: 5 | S69: 48 | T69: 0 | U69: 53 | V69: 4630.919811
O70: 2024-04-01 | P70: 503 | Q70: 536 | R70: 7 | S70: 43 | T70: 1 | U70: 18 | V70: 4188.205555
O71: 2024-05-01 | P71: 326 | Q71: 421 | R71: 6 | S71: 41 | T71: 0 | U71: 37 | V71: 3973.158378
O72: 2024-06-01 | P72: 297 | Q72: 258 | R72: 7 | S72: 81 | T72: 0 | U72: 27 | V72: 3279.345925
O73: 2024-07-01 | P73: 264 | Q73: 312 | R73: 7 | S73: 38 | T73: 0 | U73: 22 | V73: 4389.1
O74: 2024-08-01 | P74: 232 | Q74: 157 | R74: 8 | S74: 46 | T74: 0 | U74: 23 | V74: 4914.230869
O75: 2024-09-01 | P75: 490 | Q75: 165 | R75: 14 | S75: 47 | T75: 0 | U75: 35 | V75: 3764.43
O76: 2024-10-01 | P76: 302 | Q76: 307 | R76: 8 | S76: 38 | T76: 0 | U76: 27 | V76: 4068.868518
O77: 2024-11-01 | P77: 155 | Q77: 281 | R77: 15 | S77: 47 | T77: 0 | U77: 32 | V77: 5049.26625
O78: 2024-12-01 | P78: 110 | Q78: 103 | R78: 8 | S78: 33 | T78: 0 | U78: 22 | V78: 4451.479545
O79: 2025-01-01 | P79: 224 | Q79: 74 | R79: 12 | S79: 173 | T79: 0 | U79: 25 | V79: 3860.484
O80: 2025-02-01 | P80: 154 | Q80: 60 | R80: 19 | S80: 38 | T80: 0 | U80: 25 | V80: 3326.572
O81: 2025-03-01 | P81: 195 | Q81: 115 | R81: 20 | S81: 46 | T81: 0 | U81: 40 | V81: 3342.008
O82: 2025-04-01 | P82: 134 | Q82: 75 | R82: 8 | S82: 47 | T82: 0 | U82: 33 | V82: 4179.451818

Sheet vELDDashboard (hidden)
B1: =SUBTOTAL(9,vELDDashboard[CNFs Sent]) -> 23912 | C1: =SUBTOTAL(9,vELDDashboard[CNFs left at Stage 1]) -> 15056 | D1: =SUBTOTAL(9,vELDDashboard[Stage 2 Exit]) -> 345 | E1: =SUBTOTAL(9,vELDDashboard[Exit process]) -> 4921 | F1: =SUBTOTAL(9,vELDDashboard[Court Pack]) -> 8 | G1: =SUBTOTAL(9,vELDDashboard[Settled claims]) -> 1691 | H1: =SUBTOTAL(9,vELDDashboard[General Damages]) -> 321329.0131 | R1: * Figures refreshed May 23 - Apr 25
A2: Period | B2: CNFs Sent | C2: CNFs left at Stage 1 | D2: Stage 2 Exit | E2: Exit process | F2: Court Pack | G2: Settled claims | H2: General Damages | J2: Period | K2: Rolling 13 CNF Sent | L2: Rolling 13 CNF Left at Stage 1 | M2: Rolling 13 Stage 2 Exit | N2: Rolling 13 Exit Process | O2: Rolling 13 Court Pack | P2: Rolling 13 Settled Claims | R2: Period | S2: CNFs Sent | T2: CNFs left at Stage 1 | U2: Stage 2 Exit | V2: Exit process | W2: Court Pack | X2: Settled claims | Y2: General Damages
A3: 2019-10-01 | B3: 175 | C3: 83 | D3: 2 | E3: 63 | F3: 0 | G3: 7 | H3: 9071.428571 | J3: =vELDDashboard[[#This Row],[Period]] -> 2019-10-01 | R3: 2019-01-01 | S3: 439 | T3: 207 | U3: 1 | V3: 162 | W3: 1 | X3: 24 | Y3: 3734.385
A4: 2019-11-01 | B4: 153 | C4: 78 | D4: 4 | E4: 52 | F4: 0 | G4: 2 | H4: 9375 | J4: =vELDDashboard[[#This Row],[Period]] -> 2019-11-01 | R4: 2019-02-01 | S4: 469 | T4: 150 | U4: 4 | V4: 131 | W4: 0 | X4: 29 | Y4: 4074.730689
A5: 2020-01-01 | B5: 139 | C5: 75 | D5: 2 | E5: 54 | F5: 0 | G5: 1 | H5: 3625 | J5: =vELDDashboard[[#This Row],[Period]] -> 2020-01-01 | R5: 2019-03-01 | S5: 444 | T5: 247 | U5: 4 | V5: 154 | W5: 1 | X5: 29 | Y5: 3890.427586
A6: 2020-02-01 | B6: 167 | C6: 54 | D6: 0 | E6: 44 | F6: 0 | G6: 1 | H6: 10000 | J6: =vELDDashboard[[#This Row],[Period]] -> 2020-02-01 | R6: 2019-04-01 | S6: 405 | T6: 225 | U6: 3 | V6: 153 | W6: 3 | X6: 36 | Y6: 4254.035277
A7: 2020-03-01 | B7: 147 | C7: 79 | D7: 3 | E7: 56 | F7: 0 | G7: 2 | H7: 6875 | J7: =vELDDashboard[[#This Row],[Period]] -> 2020-03-01 | R7: 2019-05-01 | S7: 418 | T7: 218 | U7: 5 | V7: 144 | W7: 0 | X7: 30 | Y7: 3973.95
A8: 2020-04-01 | B8: 145 | C8: 72 | D8: 0 | E8: 48 | F8: 1 | G8: 2 | H8: 6750 | J8: =vELDDashboard[[#This Row],[Period]] -> 2020-04-01 | R8: 2019-06-01 | S8: 373 | T8: 214 | U8: 6 | V8: 135 | W8: 2 | X8: 22 | Y8: 4900.111818
A9: 2020-05-01 | B9: 86 | C9: 76 | D9: 3 | E9: 36 | F9: 0 | G9: 2 | H9: 9250 | J9: =vELDDashboard[[#This Row],[Period]] -> 2020-05-01 | R9: 2019-07-01 | S9: 431 | T9: 222 | U9: 3 | V9: 130 | W9: 3 | X9: 27 | Y9: 4078.79037
A10: 2020-06-01 | B10: 133 | C10: 68 | D10: 0 | E10: 36 | F10: 0 | G10: 4 | H10: 10000 | J10: =vELDDashboard[[#This Row],[Period]] -> 2020-06-01 | R10: 2019-08-01 | S10: 367 | T10: 206 | U10: 2 | V10: 117 | W10: 0 | X10: 24 | Y10: 4280.075833
A11: 2020-07-01 | B11: 109 | C11: 67 | D11: 0 | E11: 34 | F11: 0 | G11: 1 | H11: 3600 | J11: =vELDDashboard[[#This Row],[Period]] -> 2020-07-01 | R11: 2019-09-01 | S11: 385 | T11: 190 | U11: 5 | V11: 134 | W11: 0 | X11: 28 | Y11: 4135.575
A12: 2020-09-01 | B12: 126 | C12: 56 | D12: 0 | E12: 25 | F12: 0 | G12: 1 | H12: 10000 | J12: =vELDDashboard[[#This Row],[Period]] -> 2020-09-01 | R12: 2019-10-01 | S12: 432 | T12: 174 | U12: 5 | V12: 152 | W12: 1 | X12: 37 | Y12: 4641.112432
A13: 2020-10-01 | B13: 133 | C13: 45 | D13: 0 | E13: 39 | F13: 0 | G13: 3 | H13: 8356.8 | J13: =vELDDashboard[[#This Row],[Period]] -> 2020-10-01 | R13: 2019-11-01 | S13: 327 | T13: 171 | U13: 6 | V13: 114 | W13: 1 | X13: 30 | Y13: 4546.597
A14: 2020-11-01 | B14: 162 | C14: 59 | D14: 0 | E14: 30 | F14: 0 | G14: 2 | H14: 6750 | J14: =vELDDashboard[[#This Row],[Period]] -> 2020-11-01 | K14: =SUM(B2:B14) -> 1675 | L14: 812 | M14: 14 | N14: 517 | O14: 1 | P14: 28 | R14: 2019-12-01 | S14: 254 | T14: 144 | U14: 5 | V14: 95 | W14: 4 | X14: 15 | Y14: 3946.052
A15: 2020-12-01 | B15: 122 | C15: 71 | D15: 0 | E15: 53 | F15: 1 | G15: 3 | H15: 2433.333333 | J15: =vELDDashboard[[#This Row],[Period]] -> 2020-12-01 | K15: =SUM(B3:B15) -> 1797 | L15: 883 | M15: 14 | N15: 570 | O15: 2 | P15: 31 | R15: 2020-01-01 | S15: 325 | T15: 132 | U15: 6 | V15: 111 | W15: 2 | X15: 27 | Y15: 3777.607407
A16: 2021-01-01 | B16: 119 | C16: 86 | D16: 0 | E16: 41 | F16: 0 | G16: 3 | H16: 3310.733333 | J16: =vELDDashboard[[#This Row],[Period]] -> 2021-01-01 | K16: =SUM(B4:B16) -> 1741 | L16: 886 | M16: 12 | N16: 548 | O16: 2 | P16: 27 | R16: 2020-02-01 | S16: 364 | T16: 114 | U16: 1 | V16: 97 | W16: 0 | X16: 29 | Y16: 5334.22862
A17: 2021-02-01 | B17: 126 | C17: 37 | D17: 2 | E17: 28 | F17: 0 | G17: 2 | H17: 5930 | J17: =vELDDashboard[[#This Row],[Period]] -> 2021-02-01 | K17: =SUM(B5:B17) -> 1714 | L17: 845 | M17: 10 | N17: 524 | O17: 2 | P17: 27 | R17: 2020-03-01 | S17: 335 | T17: 173 | U17: 4 | V17: 104 | W17: 0 | X17: 48 | Y17: 4100.90625
A18: 2021-03-01 | B18: 187 | C18: 69 | D18: 2 | E18: 45 | F18: 0 | G18: 2 | H18: 13795.2 | J18: =vELDDashboard[[#This Row],[Period]] -> 2021-03-01 | K18: =SUM(B6:B18) -> 1762 | L18: 839 | M18: 10 | N18: 515 | O18: 2 | P18: 28 | R18: 2020-04-01 | S18: 380 | T18: 141 | U18: 1 | V18: 113 | W18: 2 | X18: 50 | Y18: 4034.8254
A19: 2021-05-01 | B19: 137 | C19: 59 | D19: 0 | E19: 35 | F19: 0 | G19: 1 | H19: 17013.87 | J19: =vELDDashboard[[#This Row],[Period]] -> 2021-05-01 | K19: =SUM(B7:B19) -> 1732 | L19: 844 | M19: 10 | N19: 506 | O19: 2 | P19: 28 | R19: 2020-05-01 | S19: 230 | T19: 122 | U19: 7 | V19: 92 | W19: 0 | X19: 38 | Y19: 4309.436842
A20: 2021-07-01 | B20: 208 | C20: 65 | D20: 1 | E20: 35 | F20: 0 | G20: 3 | H20: 6416.666666 | J20: =vELDDashboard[[#This Row],[Period]] -> 2021-07-01 | K20: =SUM(B8:B20) -> 1793 | L20: 830 | M20: 8 | N20: 485 | O20: 2 | P20: 29 | R20: 2020-06-01 | S20: 265 | T20: 171 | U20: 5 | V20: 102 | W20: 0 | X20: 51 | Y20: 4113.323137
A21: 2021-08-01 | B21: 287 | C21: 59 | D21: 1 | E21: 40 | F21: 0 | G21: 1 | H21: 6500 | J21: =vELDDashboard[[#This Row],[Period]] -> 2021-08-01 | K21: =SUM(B9:B21) -> 1935 | L21: 817 | M21: 9 | N21: 477 | O21: 1 | P21: 28 | R21: 2020-07-01 | S21: 274 | T21: 123 | U21: 2 | V21: 86 | W21: 1 | X21: 33 | Y21: 3784.4
A22: 2021-09-01 | B22: 336 | C22: 113 | D22: 8 | E22: 73 | F22: 0 | G22: 21 | H22: 3171.77619 | J22: =vELDDashboard[[#This Row],[Period]] -> 2021-09-01 | K22: =SUM(B10:B22) -> 2185 | L22: 854 | M22: 14 | N22: 514 | O22: 1 | P22: 47 | R22: 2020-08-01 | S22: 160 | T22: 104 | U22: 1 | V22: 69 | W22: 0 | X22: 20 | Y22: 4155.127
A23: 2021-10-01 | B23: 359 | C23: 172 | D23: 4 | E23: 71 | F23: 0 | G23: 46 | H23: 3425.783695 | J23: =vELDDashboard[[#This Row],[Period]] -> 2021-10-01 | K23: =SUM(B11:B23) -> 2411 | L23: 958 | M23: 18 | N23: 549 | O23: 1 | P23: 89 | R23: 2020-09-01 | S23: 297 | T23: 113 | U23: 2 | V23: 66 | W23: 0 | X23: 21 | Y23: 4429.123809
A24: 2021-11-01 | B24: 429 | C24: 196 | D24: 6 | E24: 109 | F24: 1 | G24: 37 | H24: 3912.088648 | J24: =vELDDashboard[[#This Row],[Period]] -> 2021-11-01 | K24: =SUM(B12:B24) -> 2731 | L24: 1087 | M24: 24 | N24: 624 | O24: 2 | P24: 125 | R24: 2020-10-01 | S24: 309 | T24: 100 | U24: 2 | V24: 104 | W24: 0 | X24: 35 | Y24: 4108.028
A25: 2021-12-01 | B25: 282 | C25: 208 | D25: 4 | E25: 93 | F25: 0 | G25: 31 | H25: 3562.285483 | J25: =vELDDashboard[[#This Row],[Period]] -> 2021-12-01 | K25: =SUM(B13:B25) -> 2887 | L25: 1239 | M25: 28 | N25: 692 | O25: 2 | P25: 155 | R25: 2020-11-01 | S25: 286 | T25: 127 | U25: 1 | V25: 66 | W25: 0 | X25: 32 | Y25: 3741.734375
A26: 2022-01-01 | B26: 381 | C26: 203 | D26: 5 | E26: 98 | F26: 0 | G26: 62 | H26: 3547.137903 | J26: =vELDDashboard[[#This Row],[Period]] -> 2022-01-01 | K26: =SUM(B14:B26) -> 3135 | L26: 1397 | M26: 33 | N26: 751 | O26: 2 | P26: 214 | R26: 2020-12-01 | S26: 249 | T26: 118 | U26: 3 | V26: 91 | W26: 1 | X26: 38 | Y26: 3454.545
A27: 2022-02-01 | B27: 327 | C27: 169 | D27: 4 | E27: 62 | F27: 0 | G27: 60 | H27: 3531.957666 | J27: =vELDDashboard[[#This Row],[Period]] -> 2022-02-01 | K27: =SUM(B15:B27) -> 3300 | L27: 1507 | M27: 37 | N27: 783 | O27: 2 | P27: 272 | R27: 2021-01-01 | S27: 310 | T27: 135 | U27: 2 | V27: 96 | W27: 0 | X27: 44 | Y27: 3490.159772
A28: 2022-03-01 | B28: 448 | C28: 239 | D28: 5 | E28: 71 | F28: 0 | G28: 32 | H28: 4654.525312 | J28: =vELDDashboard[[#This Row],[Period]] -> 2022-03-01 | K28: =SUM(B16:B28) -> 3626 | L28: 1675 | M28: 42 | N28: 801 | O28: 1 | P28: 301 | R28: 2021-02-01 | S28: 161 | T28: 81 | U28: 1 | V28: 53 | W28: 0 | X28: 45 | Y28: 3844.666666
A29: 2022-04-01 | B29: 360 | C29: 203 | D29: 5 | E29: 82 | F29: 0 | G29: 7 | H29: 4386.034285 | J29: =vELDDashboard[[#This Row],[Period]] -> 2022-04-01 | K29: =SUM(B17:B29) -> 3867 | L29: 1792 | M29: 47 | N29: 842 | O29: 1 | P29: 305 | R29: 2021-03-01 | S29: 290 | T29: 147 | U29: 2 | V29: 99 | W29: 1 | X29: 45 | Y29: 3700.458
A30: 2022-05-01 | B30: 503 | C30: 266 | D30: 4 | E30: 83 | F30: 1 | G30: 35 | H30: 3951.711428 | J30: =vELDDashboard[[#This Row],[Period]] -> 2022-05-01 | K30: =SUM(B18:B30) -> 4244 | L30: 2021 | M30: 49 | N30: 897 | O30: 2 | P30: 338 | R30: 2021-04-01 | S30: 302 | T30: 132 | U30: 4 | V30: 87 | W30: 0 | X30: 29 | Y30: 3493.789655
A31: 2022-06-01 | B31: 463 | C31: 224 | D31: 7 | E31: 75 | F31: 1 | G31: 19 | H31: 4170.318947 | J31: =vELDDashboard[[#This Row],[Period]] -> 2022-06-01 | K31: =SUM(B19:B31) -> 4520 | L31: 2176 | M31: 54 | N31: 927 | O31: 3 | P31: 355 | R31: 2021-05-01 | S31: 240 | T31: 129 | U31: 1 | V31: 84 | W31: 0 | X31: 44 | Y31: 3907.815681
A32: 2022-07-01 | B32: 452 | C32: 426 | D32: 8 | E32: 61 | F32: 0 | G32: 27 | H32: 3708.055555 | J32: =vELDDashboard[[#This Row],[Period]] -> 2022-07-01 | K32: =SUM(B20:B32) -> 4835 | L32: 2543 | M32: 62 | N32: 953 | O32: 3 | P32: 381 | R32: 2021-06-01 | S32: 258 | T32: 190 | U32: 1 | V32: 69 | W32: 1 | X32: 17 | Y32: 4477.42647
A33: 2022-08-01 | B33: 505 | C33: 362 | D33: 9 | E33: 66 | F33: 0 | G33: 25 | H33: 4221.534 | J33: =vELDDashboard[[#This Row],[Period]] -> 2022-08-01 | K33: =SUM(B21:B33) -> 5132 | L33: 2840 | M33: 70 | N33: 984 | O33: 3 | P33: 403 | R33: 2021-07-01 | S33: 411 | T33: 154 | U33: 2 | V33: 65 | W33: 0 | X33: 35 | Y33: 3377.421428
A34: 2022-09-01 | B34: 409 | C34: 257 | D34: 8 | E34: 74 | F34: 1 | G34: 33 | H34: 4747.877272 | J34: =vELDDashboard[[#This Row],[Period]] -> 2022-09-01 | K34: =SUM(B22:B34) -> 5254 | L34: 3038 | M34: 77 | N34: 1018 | O34: 4 | P34: 435 | R34: 2021-08-01 | S34: 310 | T34: 186 | U34: 2 | V34: 70 | W34: 0 | X34: 23 | Y34: 3008.734782
A35: 2022-10-01 | B35: 447 | C35: 298 | D35: 3 | E35: 71 | F35: 0 | G35: 36 | H35: 3836.775 | J35: =vELDDashboard[[#This Row],[Period]] -> 2022-10-01 | K35: =SUM(B23:B35) -> 5365 | L35: 3223 | M35: 72 | N35: 1016 | O35: 4 | P35: 450 | R35: 2021-09-01 | S35: 322 | T35: 187 | U35: 9 | V35: 88 | W35: 0 | X35: 56 | Y35: 3245.840178
A36: 2022-11-01 | B36: 495 | C36: 257 | D36: 3 | E36: 86 | F36: 1 | G36: 29 | H36: 5012.076896 | J36: =vELDDashboard[[#This Row],[Period]] -> 2022-11-01 | K36: =SUM(B24:B36) -> 5501 | L36: 3308 | M36: 71 | N36: 1031 | O36: 5 | P36: 433 | R36: 2021-10-01 | S36: 335 | T36: 162 | U36: 4 | V36: 70 | W36: 0 | X36: 46 | Y36: 3487.340217
A37: 2022-12-01 | B37: 351 | C37: 263 | D37: 6 | E37: 81 | F37: 0 | G37: 27 | H37: 4076.145555 | J37: =vELDDashboard[[#This Row],[Period]] -> 2022-12-01 | K37: =SUM(B25:B37) -> 5423 | L37: 3375 | M37: 71 | N37: 1003 | O37: 4 | P37: 423 | R37: 2021-11-01 | S37: 408 | T37: 180 | U37: 6 | V37: 100 | W37: 1 | X37: 37 | Y37: 3714.316756
A38: 2023-01-01 | B38: 501 | C38: 317 | D38: 8 | E38: 71 | F38: 0 | G38: 55 | H38: 3662.128363 | J38: =vELDDashboard[[#This Row],[Period]] -> 2023-01-01 | K38: =SUM(B26:B38) -> 5642 | L38: 3484 | M38: 75 | N38: 981 | O38: 4 | P38: 447 | R38: 2021-12-01 | S38: 252 | T38: 194 | U38: 4 | V38: 90 | W38: 0 | X38: 31 | Y38: 3321.544838
A39: 2023-02-01 | B39: 521 | C39: 229 | D39: 3 | E39: 76 | F39: 0 | G39: 23 | H39: 4206.8 | J39: =vELDDashboard[[#This Row],[Period]] -> 2023-02-01 | K39: =SUM(B27:B39) -> 5782 | L39: 3510 | M39: 73 | N39: 959 | O39: 4 | P39: 408 | R39: 2022-01-01 | S39: 360 | T39: 192 | U39: 5 | V39: 92 | W39: 0 | X39: 63 | Y39: 3527.666825
A40: 2023-03-01 | B40: 533 | C40: 352 | D40: 10 | E40: 120 | F40: 0 | G40: 34 | H40: 3691.957941 | J40: =vELDDashboard[[#This Row],[Period]] -> 2023-03-01 | K40: =SUM(B28:B40) -> 5988 | L40: 3693 | M40: 79 | N40: 1017 | O40: 4 | P40: 382 | R40: 2022-02-01 | S40: 308 | T40: 160 | U40: 4 | V40: 59 | W40: 0 | X40: 63 | Y40: 3380.203333
A41: 2023-04-01 | B41: 543 | C41: 270 | D41: 4 | E41: 81 | F41: 0 | G41: 29 | H41: 3567.691724 | J41: =vELDDashboard[[#This Row],[Period]] -> 2023-04-01 | K41: =SUM(B29:B41) -> 6083 | L41: 3724 | M41: 78 | N41: 1027 | O41: 4 | P41: 379 | R41: 2022-03-01 | S41: 416 | T41: 223 | U41: 5 | V41: 71 | W41: 0 | X41: 36 | Y41: 4066.627777
A42: 2023-05-01 | B42: 614 | C42: 226 | D42: 12 | E42: 98 | F42: 0 | G42: 64 | H42: 3827.930781 | J42: =vELDDashboard[[#This Row],[Period]] -> 2023-05-01 | K42: =SUM(B30:B42) -> 6337 | L42: 3747 | M42: 85 | N42: 1043 | O42: 4 | P42: 436 | R42: 2022-04-01 | S42: 329 | T42: 186 | U42: 5 | V42: 79 | W42: 0 | X42: 7 | Y42: 4384.605714
A43: 2023-06-01 | B43: 640 | C43: 456 | D43: 4 | E43: 95 | F43: 0 | G43: 49 | H43: 3444.55102 | J43: =vELDDashboard[[#This Row],[Period]] -> 2023-06-01 | K43: =SUM(B31:B43) -> 6474 | L43: 3937 | M43: 85 | N43: 1055 | O43: 3 | P43: 450 | R43: 2022-05-01 | S43: 394 | T43: 246 | U43: 4 | V43: 76 | W43: 1 | X43: 36 | Y43: 3896.656388
A44: 2023-07-01 | B44: 695 | C44: 425 | D44: 6 | E44: 126 | F44: 0 | G44: 40 | H44: 3578.814 | J44: =vELDDashboard[[#This Row],[Period]] -> 2023-07-01 | K44: =SUM(B32:B44) -> 6706 | L44: 4138 | M44: 84 | N44: 1106 | O44: 2 | P44: 471 | R44: 2022-06-01 | S44: 487 | T44: 210 | U44: 7 | V44: 70 | W44: 1 | X44: 19 | Y44: 3997.487894
A45: 2023-08-01 | B45: 1000 | C45: 428 | D45: 8 | E45: 198 | F45: 0 | G45: 47 | H45: 3724.151063 | J45: =vELDDashboard[[#This Row],[Period]] -> 2023-08-01 | K45: =SUM(B33:B45) -> 7254 | L45: 4140 | M45: 84 | N45: 1243 | O45: 2 | P45: 491 | R45: 2022-07-01 | S45: 427 | T45: 417 | U45: 9 | V45: 56 | W45: 0 | X45: 28 | Y45: 3584.553571
A46: 2023-09-01 | B46: 3510 | C46: 443 | D46: 3 | E46: 405 | F46: 0 | G46: 91 | H46: 3420.821978 | J46: =vELDDashboard[[#This Row],[Period]] -> 2023-09-01 | K46: =SUM(B34:B46) -> 10259 | L46: 4221 | M46: 78 | N46: 1582 | O46: 2 | P46: 557 | R46: 2022-08-01 | S46: 492 | T46: 332 | U46: 9 | V46: 63 | W46: 0 | X46: 25 | Y46: 4211.534
A47: 2023-10-01 | B47: 423 | C47: 1009 | D47: 3 | E47: 447 | F47: 0 | G47: 53 | H47: 3354.669811 | J47: =vELDDashboard[[#This Row],[Period]] -> 2023-10-01 | K47: =SUM(B35:B47) -> 10273 | L47: 4973 | M47: 73 | N47: 1955 | O47: 1 | P47: 577 | R47: 2022-09-01 | S47: 392 | T47: 236 | U47: 8 | V47: 73 | W47: 1 | X47: 33 | Y47: 4464.692121
A48: 2023-11-01 | B48: 468 | C48: 1726 | D48: 9 | E48: 220 | F48: 0 | G48: 42 | H48: 4025.859761 | J48: =vELDDashboard[[#This Row],[Period]] -> 2023-11-01 | K48: =SUM(B36:B48) -> 10294 | L48: 6401 | M48: 79 | N48: 2104 | O48: 1 | P48: 583 | R48: 2022-10-01 | S48: 447 | T48: 298 | U48: 3 | V48: 71 | W48: 0 | X48: 36 | Y48: 3836.775
A49: 2023-12-01 | B49: 211 | C49: 336 | D49: 3 | E49: 49 | F49: 0 | G49: 73 | H49: 3342.43863 | J49: =vELDDashboard[[#This Row],[Period]] -> 2023-12-01 | K49: =SUM(B37:B49) -> 10010 | L49: 6480 | M49: 79 | N49: 2067 | O49: 0 | P49: 627 | R49: 2022-11-01 | S49: 495 | T49: 257 | U49: 3 | V49: 86 | W49: 1 | X49: 29 | Y49: 5012.076896
A50: 2024-01-01 | B50: 451 | C50: 260 | D50: 11 | E50: 45 | F50: 0 | G50: 33 | H50: 3724.128181 | J50: =vELDDashboard[[#This Row],[Period]] -> 2024-01-01 | K50: =SUM(B38:B50) -> 10110 | L50: 6477 | M50: 84 | N50: 2031 | O50: 0 | P50: 633 | R50: 2022-12-01 | S50: 351 | T50: 263 | U50: 6 | V50: 81 | W50: 0 | X50: 27 | Y50: 4076.145555
A51: 2024-02-01 | B51: 438 | C51: 294 | D51: 8 | E51: 74 | F51: 0 | G51: 69 | H51: 3370.433478 | J51: =vELDDashboard[[#This Row],[Period]] -> 2024-02-01 | K51: =SUM(B39:B51) -> 10047 | L51: 6454 | M51: 84 | N51: 2034 | O51: 0 | P51: 647 | R51: 2023-01-01 | S51: 501 | T51: 317 | U51: 8 | V51: 71 | W51: 0 | X51: 55 | Y51: 3662.128363
A52: 2024-03-01 | B52: 570 | C52: 307 | D52: 5 | E52: 48 | F52: 0 | G52: 53 | H52: 4630.919811 | J52: =vELDDashboard[[#This Row],[Period]] -> 2024-03-01 | K52: =SUM(B40:B52) -> 10096 | L52: 6532 | M52: 86 | N52: 2006 | O52: 0 | P52: 677 | R52: 2023-02-01 | S52: 520 | T52: 229 | U52: 3 | V52: 76 | W52: 0 | X52: 23 | Y52: 4206.8
A53: 2024-04-01 | B53: 503 | C53: 536 | D53: 7 | E53: 43 | F53: 1 | G53: 18 | H53: 4188.205555 | J53: =vELDDashboard[[#This Row],[Period]] -> 2024-04-01 | K53: =SUM(B41:B53) -> 10066 | L53: 6716 | M53: 83 | N53: 1929 | O53: 1 | P53: 661 | R53: 2023-03-01 | S53: 533 | T53: 352 | U53: 10 | V53: 120 | W53: 0 | X53: 34 | Y53: 3691.957941
A54: 2024-05-01 | B54: 326 | C54: 421 | D54: 6 | E54: 41 | F54: 0 | G54: 37 | H54: 3973.158378 | J54: =vELDDashboard[[#This Row],[Period]] -> 2024-05-01 | K54: =SUM(B42:B54) -> 9849 | L54: 6867 | M54: 85 | N54: 1889 | O54: 1 | P54: 669 | R54: 2023-04-01 | S54: 543 | T54: 270 | U54: 4 | V54: 81 | W54: 0 | X54: 29 | Y54: 3567.691724
A55: 2024-06-01 | B55: 297 | C55: 258 | D55: 7 | E55: 81 | F55: 0 | G55: 27 | H55: 3279.345925 | J55: =vELDDashboard[[#This Row],[Period]] -> 2024-06-01 | K55: =SUM(B43:B55) -> 9532 | L55: 6899 | M55: 80 | N55: 1872 | O55: 1 | P55: 632 | R55: 2023-05-01 | S55: 614 | T55: 226 | U55: 12 | V55: 98 | W55: 0 | X55: 64 | Y55: 3827.930781
A56: 2024-07-01 | B56: 264 | C56: 312 | D56: 7 | E56: 38 | F56: 0 | G56: 22 | H56: 4389.1 | J56: =vELDDashboard[[#This Row],[Period]] -> 2024-07-01 | K56: =SUM(B44:B56) -> 9156 | L56: 6755 | M56: 83 | N56: 1815 | O56: 1 | P56: 605 | R56: 2023-06-01 | S56: 640 | T56: 456 | U56: 4 | V56: 95 | W56: 0 | X56: 49 | Y56: 3444.55102
A57: 2024-08-01 | B57: 232 | C57: 157 | D57: 8 | E57: 46 | F57: 0 | G57: 23 | H57: 4914.230869 | J57: =vELDDashboard[[#This Row],[Period]] -> 2024-08-01 | K57: =SUM(B45:B57) -> 8693 | L57: 6487 | M57: 85 | N57: 1735 | O57: 1 | P57: 588 | R57: 2023-07-01 | S57: 695 | T57: 425 | U57: 6 | V57: 126 | W57: 0 | X57: 40 | Y57: 3578.814
A58: 2024-09-01 | B58: 490 | C58: 165 | D58: 14 | E58: 47 | F58: 0 | G58: 35 | H58: 3764.43 | J58: =vELDDashboard[[#This Row],[Period]] -> 2024-09-01 | K58: =SUM(B46:B58) -> 8183 | L58: 6224 | M58: 91 | N58: 1584 | O58: 1 | P58: 576 | R58: 2023-08-01 | S58: 1000 | T58: 428 | U58: 8 | V58: 198 | W58: 0 | X58: 47 | Y58: 3724.151063
A59: 2024-10-01 | B59: 302 | C59: 307 | D59: 8 | E59: 38 | F59: 0 | G59: 27 | H59: 4068.868518 | J59: =vELDDashboard[[#This Row],[Period]] -> 2024-10-01 | K59: =SUM(B47:B59) -> 4975 | L59: 6088 | M59: 96 | N59: 1217 | O59: 1 | P59: 512 | R59: 2023-09-01 | S59: 3510 | T59: 443 | U59: 3 | V59: 405 | W59: 0 | X59: 91 | Y59: 3420.821978
A60: 2024-11-01 | B60: 155 | C60: 281 | D60: 15 | E60: 47 | F60: 0 | G60: 32 | H60: 5049.26625 | J60: =vELDDashboard[[#This Row],[Period]] -> 2024-11-01 | K60: =SUM(B48:B60) -> 4707 | L60: 5360 | M60: 108 | N60: 817 | O60: 1 | P60: 491 | R60: 2023-10-01 | S60: 423 | T60: 1009 | U60: 3 | V60: 447 | W60: 0 | X60: 53 | Y60: 3354.669811
A61: 2024-12-01 | B61: 110 | C61: 103 | D61: 8 | E61: 33 | F61: 0 | G61: 22 | H61: 4451.479545 | J61: =vELDDashboard[[#This Row],[Period]] -> 2024-12-01 | K61: =SUM(B49:B61) -> 4349 | L61: 3737 | M61: 107 | N61: 630 | O61: 1 | P61: 471 | R61: 2023-11-01 | S61: 468 | T61: 1726 | U61: 9 | V61: 220 | W61: 0 | X61: 42 | Y61: 4025.859761
A62: 2025-01-01 | B62: 224 | C62: 74 | D62: 12 | E62: 173 | F62: 0 | G62: 25 | H62: 3860.484 | J62: =vELDDashboard[[#This Row],[Period]] -> 2025-01-01 | K62: =SUM(B50:B62) -> 4362 | L62: 3475 | M62: 116 | N62: 754 | O62: 1 | P62: 423 | R62: 2023-12-01 | S62: 211 | T62: 336 | U62: 3 | V62: 49 | W62: 0 | X62: 73 | Y62: 3342.43863
A63: 2025-02-01 | B63: 154 | C63: 60 | D63: 19 | E63: 38 | F63: 0 | G63: 25 | H63: 3326.572 | J63: =vELDDashboard[[#This Row],[Period]] -> 2025-02-01 | K63: =SUM(B51:B63) -> 4065 | L63: 3275 | M63: 124 | N63: 747 | O63: 1 | P63: 415 | R63: 2024-01-01 | S63: 451 | T63: 260 | U63: 11 | V63: 45 | W63: 0 | X63: 33 | Y63: 3724.128181
A64: 2025-03-01 | B64: 195 | C64: 115 | D64: 20 | E64: 46 | F64: 0 | G64: 40 | H64: 3342.008 | J64: =vELDDashboard[[#This Row],[Period]] -> 2025-03-01 | K64: =SUM(B52:B64) -> 3822 | L64: 3096 | M64: 136 | N64: 719 | O64: 1 | P64: 386 | R64: 2024-02-01 | S64: 438 | T64: 294 | U64: 8 | V64: 74 | W64: 0 | X64: 69 | Y64: 3370.433478
A65: 2025-04-01 | B65: 134 | C65: 75 | D65: 8 | E65: 47 | F65: 0 | G65: 33 | H65: 4179.451818 | J65: =vELDDashboard[[#This Row],[Period]] -> 2025-04-01 | K65: =SUM(B53:B65) -> 3386 | L65: 2864 | M65: 139 | N65: 718 | O65: 1 | P65: 366 | R65: 2024-03-01 | S65: 570 | T65: 307 | U65: 5 | V65: 48 | W65: 0 | X65: 53 | Y65: 4630.919811
R66: 2024-04-01 | S66: 503 | T66: 536 | U66: 7 | V66: 43 | W66: 1 | X66: 18 | Y66: 4188.205555
R67: 2024-05-01 | S67: 326 | T67: 421 | U67: 6 | V67: 41 | W67: 0 | X67: 37 | Y67: 3973.158378
R68: 2024-06-01 | S68: 297 | T68: 258 | U68: 7 | V68: 81 | W68: 0 | X68: 27 | Y68: 3279.345925
R69: 2024-07-01 | S69: 264 | T69: 312 | U69: 7 | V69: 38 | W69: 0 | X69: 22 | Y69: 4389.1
R70: 2024-08-01 | S70: 232 | T70: 157 | U70: 8 | V70: 46 | W70: 0 | X70: 23 | Y70: 4914.230869
R71: 2024-09-01 | S71: 490 | T71: 165 | U71: 14 | V71: 47 | W71: 0 | X71: 35 | Y71: 3764.43
R72: 2024-10-01 | S72: 302 | T72: 307 | U72: 8 | V72: 38 | W72: 0 | X72: 27 | Y72: 4068.868518
R73: 2024-11-01 | S73: 155 | T73: 281 | U73: 15 | V73: 47 | W73: 0 | X73: 32 | Y73: 5049.26625
R74: 2024-12-01 | S74: 110 | T74: 103 | U74: 8 | V74: 33 | W74: 0 | X74: 22 | Y74: 4451.479545
R75: 2025-01-01 | S75: 224 | T75: 74 | U75: 12 | V75: 173 | W75: 0 | X75: 25 | Y75: 3860.484
R76: 2025-02-01 | S76: 154 | T76: 60 | U76: 19 | V76: 38 | W76: 0 | X76: 25 | Y76: 3326.572
R77: 2025-03-01 | S77: 195 | T77: 115 | U77: 20 | V77: 46 | W77: 0 | X77: 40 | Y77: 3342.008
R78: 2025-04-01 | S78: 134 | T78: 75 | U78: 8 | V78: 47 | W78: 0 | X78: 33 | Y78: 4179.451818

Sheet Year Calculations (hidden)
A1: Period | B1: CNFs sent | C1: CNFs left at stage 1 | D1: Stage 2 exit | E1: Exit process | F1: Court pack | G1: Settled claims
A2: 2013-14 | B2: =SUM('Backing Sheet Data'!#REF!) ->  | C2: =SUM('Backing Sheet Data'!#REF!) ->  | D2: =SUM('Backing Sheet Data'!#REF!) ->  | E2: =SUM('Backing Sheet Data'!#REF!) ->  | F2: =SUM('Backing Sheet Data'!#REF!) ->  | G2: =SUM('Backing Sheet Data'!#REF!) -> 
A3: 2014-15 | B3: =SUM('Backing Sheet Data'!#REF!) ->  | C3: =SUM('Backing Sheet Data'!#REF!) ->  | D3: =SUM('Backing Sheet Data'!#REF!) ->  | E3: =SUM('Backing Sheet Data'!#REF!) ->  | F3: =SUM('Backing Sheet Data'!#REF!) ->  | G3: =SUM('Backing Sheet Data'!#REF!) -> 
A4: 2015-16 | B4: =SUM('Backing Sheet Data'!#REF!) ->  | C4: =SUM('Backing Sheet Data'!#REF!) ->  | D4: =SUM('Backing Sheet Data'!#REF!) ->  | E4: =SUM('Backing Sheet Data'!#REF!) ->  | F4: =SUM('Backing Sheet Data'!#REF!) ->  | G4: =SUM('Backing Sheet Data'!#REF!) -> 
A5: 2016-17 | B5: =SUM('Backing Sheet Data'!#REF!) ->  | C5: =SUM('Backing Sheet Data'!#REF!) ->  | D5: =SUM('Backing Sheet Data'!#REF!) ->  | E5: =SUM('Backing Sheet Data'!#REF!) ->  | F5: =SUM('Backing Sheet Data'!#REF!) ->  | G5: =SUM('Backing Sheet Data'!#REF!) -> 
A6: 2017-18 | B6: =SUM('Backing Sheet Data'!#REF!) ->  | C6: =SUM('Backing Sheet Data'!#REF!) ->  | D6: =SUM('Backing Sheet Data'!#REF!) ->  | E6: =SUM('Backing Sheet Data'!#REF!) ->  | F6: =SUM('Backing Sheet Data'!#REF!) ->  | G6: =SUM('Backing Sheet Data'!#REF!) -> 
A7: 2018-19 | B7: =SUM('Backing Sheet Data'!#REF!) ->  | C7: =SUM('Backing Sheet Data'!#REF!) ->  | D7: =SUM('Backing Sheet Data'!#REF!) ->  | E7: =SUM('Backing Sheet Data'!#REF!) ->  | F7: =SUM('Backing Sheet Data'!#REF!) ->  | G7: =SUM('Backing Sheet Data'!#REF!) -> 
A8: 2019-20 | B8: =SUM('Backing Sheet Data'!#REF!) ->  | C8: =SUM('Backing Sheet Data'!#REF!) ->  | D8: =SUM('Backing Sheet Data'!#REF!) ->  | E8: =SUM('Backing Sheet Data'!#REF!) ->  | F8: =SUM('Backing Sheet Data'!#REF!) ->  | G8: =SUM('Backing Sheet Data'!#REF!) -> 
A9: 2020-21 | B9: =SUM('Backing Sheet Data'!#REF!) ->  | C9: =SUM('Backing Sheet Data'!#REF!) ->  | D9: =SUM('Backing Sheet Data'!#REF!) ->  | E9: =SUM('Backing Sheet Data'!#REF!) ->  | F9: =SUM('Backing Sheet Data'!#REF!) ->  | G9: =SUM('Backing Sheet Data'!#REF!) -> 
